bitfinex/quotes_ETHUSD_20250523
["timestamp","ask_amount","ask_price","bid_price","bid_amount"]
[1747978140802,1.1087,2683.9,2682.6,0.36489651]
[1747978140959,3.72717107,2683.0,2682.6,0.36489651]
[1747978142105,3.72625521,2683.7,2682.6,0.36489651]
[1747978142256,3.72710931,2683.1,2682.6,0.36489651]
[1747978142457,0.48346427,2683.8,2682.7,0.60110465]
[1747978142769,4.42649737,2683.5,2682.8,1.0937]
[1747978142951,3.72663549,2683.4,2682.8,34.9257]
[1747978143152,3.72652977,2683.5,2682.8,34.9257]
[1747978143454,3.72665042,2683.4,2682.8,40.64691091]
[1747978143653,3.72651781,2683.5,2682.9,3.7272914]
[1747978143888,11.7262253,2683.7,2682.8,36.91948439]
[1747978144188,11.7262,2683.7,2682.9,3.72718326]
[1747978144395,3.72633775,2683.6,2682.9,38.67049553]
[1747978144554,3.72655391,2683.5,2682.9,38.67049553]
[1747978144755,3.72638353,2683.6,2683.0,3.72714303]
[1747978145075,3.72627749,2683.7,2683.0,3.72717107]
[1747978145280,8.0,2683.8,2682.9,34.94331227]
[1747978145586,0.05,2683.9,2683.0,1.73629167]
[1747978145795,3.72606006,2683.8,2683.1,3.72693162]
[1747978145992,3.72606006,2683.8,2683.2,3.72686909]
[1747978146292,3.775936,2683.9,2683.3,17.1862]
[1747978146451,3.72606364,2683.8,2683.3,17.1862]
[1747978146654,0.05,2683.9,2683.3,20.91283471]
[1747978146876,3.77593424,2683.9,2683.4,1.11431227]
[1747978147088,3.72607448,2683.8,2683.4,1.11431227]
[1747978147294,3.77597291,2683.9,2683.4,1.11431227]
[1747978147496,0.05,2683.9,2683.4,4.84088538]
[1747978147659,3.77592377,2683.9,2683.4,1.11431227]
[1747978148211,0.05,2683.9,2683.5,3.72646953]
[1747978148496,0.05,2683.9,2683.6,22.058]
[1747978148672,0.05,2683.9,2683.6,34.96429167]
[1747978148851,0.05,2683.9,2683.7,33.228]
[1747978149365,4.83582175,2682.1,2682.0,1.17184944]
[1747978149574,13.31940393,2682.1,2682.0,1.17184944]
[1747978150202,12.83582175,2682.1,2682.0,1.17184944]
[1747978150407,12.83582175,2682.1,2682.0,24.96984944]
[1747978150581,12.83582175,2682.1,2682.0,23.798]
[1747978150582,11.72842175,2682.1,2682.0,23.798]
[1747978151386,3.72842175,2682.1,2682.0,23.798]
[1747978152000,1.0572,2682.5,2682.0,23.798]
[1747978152001,3.72802554,2682.4,2682.0,23.798]
[1747978152173,3.72828275,2682.2,2682.0,23.798]
[1747978152375,8.0,2682.5,2682.0,23.798]
[1747978152705,3.72829394,2682.2,2682.0,23.798]
[1747978152908,3.72829394,2682.2,2682.1,11.17]
[1747978153110,3.72819264,2682.3,2682.1,11.17]
[1747978153414,3.72816491,2682.3,2682.1,11.17]
[1747978153783,8.0,2682.6,2682.1,11.17]
[1747978154120,3.72786579,2682.5,2682.1,11.17]
[1747978154302,3.7270964,2683.1,2682.1,11.17]
[1747978154303,4.84700197,2683.3,2682.1,11.17]
[1747978154472,3.72740484,2682.9,2682.2,3.76554143]
[1747978154672,3.72718259,2683.0,2682.3,3.72802952]
[1747978154896,9.1145,2683.7,2682.5,4.80626579]
[1747978155112,3.72698108,2683.2,2682.5,4.80626579]
[1747978155320,3.72633775,2683.6,2682.5,1.0784]
[1747978155617,3.72726604,2683.0,2682.5,1.0784]
[1747978156316,3.72708436,2683.1,2682.5,1.0784]
[1747978156476,3.72719344,2683.0,2682.5,1.0784]
[1747978157114,3.72731261,2682.9,2682.2,3.72828275]
[1747978157282,3.72745904,2682.8,2682.3,34.97]
[1747978157478,3.72745904,2682.8,2682.2,0.85815839]
[1747978157685,3.72772219,2682.7,2682.3,23.8]
[1747978157894,3.72772219,2682.7,2682.4,11.17]
[1747978158410,3.72747942,2682.8,2682.4,11.17]
[1747978158584,8.0,2683.3,2682.5,11.17]
[1747978158782,3.72734381,2682.9,2682.5,11.17]
[1747978158987,8.0,2683.3,2682.5,11.17]
[1747978159304,3.72744502,2682.9,2682.5,11.17]
[1747978159617,3.72614143,2683.8,2682.2,3.72828275]
[1747978159824,3.72614143,2683.8,2682.6,34.359]
[1747978159994,3.72725723,2683.0,2682.6,34.359]
[1747978160179,0.48406414,2683.6,2682.6,34.359]
[1747978160180,8.0,2683.4,2682.6,34.359]
[1747978160510,3.72728503,2683.0,2682.6,23.189]
[1747978160816,3.72743217,2682.9,2682.7,11.17]
[1747978161816,3.72706003,2683.1,2682.7,11.17]
[1747978162019,3.72718924,2683.0,2682.7,11.17]
[1747978162310,3.72661548,2683.4,2682.7,11.17]
[1747978162619,3.72697296,2683.2,2682.8,1.1527]
[1747978162915,3.72703279,2683.1,2682.9,16.084]
[1747978163712,0.48406414,2683.6,2682.9,16.084]
[1747978163879,3.72688515,2683.3,2682.9,16.084]
[1747978164294,3.72690102,2683.2,2682.9,16.084]
[1747978164712,3.72662876,2683.4,2682.9,16.084]
[1747978164910,0.05,2683.9,2682.9,16.084]
[1747978165122,0.05,2683.9,2683.1,1.0656]
[1747978165323,0.05,2683.9,2683.4,3.72658589]
[1747978165510,0.05,2683.9,2683.5,34.357]
[1747978166129,0.05,2683.9,2683.6,3.72625454]
[1747978166546,0.05,2683.9,2683.7,4.79170823]
[1747978166855,0.05,2683.9,2683.8,3.72606006]
[1747978168258,0.05,2683.9,2683.8,4.77536006]
[1747978169203,0.05,2683.9,2683.8,15.94336006]
[1747978169430,0.05,2683.9,2683.8,17.53769607]
[1747978170939,0.05,2684.9,2684.5,1.1248]
[1747978171155,3.77456914,2684.9,2684.6,49.83]
[1747978171329,0.05,2684.9,2684.6,49.83]
[1747978172435,0.05,2684.9,2684.6,16.08]
[1747978172752,0.05,2684.9,2684.7,33.75]
[1747978173747,0.05,2684.9,2684.8,3.72467222]
[1747978173948,0.05,2684.9,2684.7,38.58275586]
[1747978174510,0.05,2684.9,2684.8,3.72467222]
[1747978174759,0.05,2684.9,2684.7,34.85795682]
[1747978175316,0.05,2684.9,2684.7,38.58275073]
[1747978175645,0.05,2684.9,2684.8,1.59433601]
[1747978176531,0.05,2684.9,2684.8,12.75833601]
[1747978177016,0.05,2684.9,2684.8,11.164]
[1747978177748,3.72481096,2684.7,2684.6,16.08]
[1747978178047,3.72473011,2684.8,2684.6,49.176]
[1747978178265,0.05,2684.9,2684.6,16.08]
[1747978178447,0.05,2684.9,2684.7,33.096]
[1747978178653,3.72467222,2684.8,2684.7,33.096]
[1747978179354,3.72467222,2684.8,2684.7,33.095]
[1747978179756,0.05,2684.9,2684.7,33.095]
[1747978180060,3.72467222,2684.8,2684.7,33.095]
[1747978180360,3.72467222,2684.8,2684.6,16.08]
[1747978180561,3.72467222,2684.8,2684.7,33.094]
[1747978180764,3.72481096,2684.7,2684.6,16.08]
[1747978180949,3.72481096,2684.7,2684.6,49.174]
[1747978182072,3.72473513,2684.8,2684.6,49.174]
[1747978182359,3.72470753,2684.8,2684.6,49.174]
[1747978182772,3.72481096,2684.7,2684.6,49.174]
[1747978184137,0.05,2684.9,2684.6,49.174]
[1747978184359,3.72476037,2684.8,2684.6,49.174]
[1747978185068,3.72481096,2684.7,2684.6,49.174]
[1747978185363,3.77457716,2684.9,2684.6,49.174]
[1747978185364,3.72472077,2684.8,2684.6,16.08]
[1747978185577,3.72481096,2684.7,2684.6,16.08]
[1747978185742,3.72481096,2684.7,2684.6,49.174]
[1747978185944,3.72467222,2684.8,2684.6,49.174]
[1747978186180,3.72481096,2684.7,2684.6,49.174]
[1747978186373,3.72473362,2684.8,2684.6,16.08]
[1747978186575,3.7255048,2684.2,2684.1,1.1502]
[1747978186869,3.72522269,2684.5,2684.4,16.074]
[1747978187073,3.72484198,2684.7,2684.4,49.168]
[1747978187273,3.72474796,2684.8,2684.4,49.168]
[1747978187454,0.05,2684.9,2684.4,49.168]
[1747978187652,0.05,2684.9,2684.4,52.89321358]
[1747978187851,0.05,2684.9,2684.4,52.89318304]
[1747978188165,3.72474571,2684.8,2684.4,49.168]
[1747978188340,3.77457314,2684.9,2684.4,49.168]
[1747978189978,3.77457314,2684.9,2684.5,32.512]
[1747978190788,0.05,2684.9,2684.5,32.512]
[1747978190940,3.7746176,2684.9,2684.5,32.512]
[1747978191581,3.7746176,2684.9,2684.6,32.511]
[1747978191983,3.72481096,2684.7,2684.6,21.349]
[1747978192144,3.72481096,2684.7,2684.6,32.511]
[1747978192644,3.72473703,2684.8,2684.4,16.074]
[1747978192977,3.7248186,2684.7,2684.4,16.074]
[1747978193173,3.7248186,2684.7,2684.5,32.511]
[1747978193380,3.72473784,2684.8,2684.5,32.511]
[1747978194180,3.72472798,2684.8,2684.5,32.511]
[1747978194600,3.77458842,2684.9,2684.5,32.511]
[1747978194751,0.05,2684.9,2684.6,37.422]
[1747978195561,3.77457974,2684.9,2684.6,37.422]
[1747978196085,3.77457974,2684.9,2684.7,11.162]
[1747978196254,0.05,2684.9,2684.7,11.162]
[1747978196688,3.77453416,2684.9,2684.7,11.162]
[1747978198103,3.7246989,2684.8,2684.6,37.422]
[1747978198273,3.77459687,2684.9,2684.8,11.162]
[1747978200100,0.05,2684.9,2684.8,11.162]
[1747978200809,0.05,2684.9,2684.8,12.2565]
[1747978201002,0.05,2684.9,2684.8,15.98117222]
[1747978201173,0.05,2684.9,2684.8,12.2565]
[1747978201502,0.05,2684.9,2684.8,15.98117222]
[1747978202288,0.05,2684.9,2684.8,1.0945]
[1747978202533,0.05,2684.9,2684.6,16.073]
[1747978202832,3.77454006,2684.9,2684.8,20.715]
[1747978203127,4.26583407,2684.9,2684.8,20.715]
[1747978203531,3.72481096,2684.7,2684.6,16.073]
[1747978203705,3.72481096,2684.7,2684.6,36.788]
[1747978204903,3.72468568,2684.8,2684.6,36.788]
[1747978205718,3.72481096,2684.7,2684.6,16.073]
[1747978206033,3.72481096,2684.7,2684.6,36.788]
[1747978206711,3.72481096,2684.7,2684.6,47.949]
[1747978206910,3.72481096,2684.7,2684.6,36.788]
[1747978207733,3.72472714,2684.8,2684.6,36.788]
[1747978208108,3.72472714,2684.8,2684.6,16.073]
[1747978208315,3.72472714,2684.8,2684.7,31.876]
[1747978209700,0.05,2684.9,2684.7,31.876]
[1747978210232,3.72467222,2684.8,2684.7,31.876]
[1747978212338,0.05,2684.9,2684.7,31.876]
[1747978212924,3.77454258,2684.9,2684.7,31.876]
[1747978213241,0.05,2684.9,2684.7,31.876]
[1747978213444,0.05,2684.9,2684.7,20.715]
[1747978213604,3.77454007,2684.9,2684.8,11.162]
[1747978214931,3.72472881,2684.8,2684.6,16.073]
[1747978215144,3.72472881,2684.8,2684.7,31.25]
[1747978215708,3.72481096,2684.7,2684.6,16.073]
[1747978216110,3.72481096,2684.7,2684.6,47.323]
[1747978217044,5.5476601,2684.7,2684.6,16.073]
[1747978217767,13.5476601,2684.7,2684.6,16.073]
[1747978219435,3.72508847,2684.5,2684.4,20.089]
[1747978219653,12.78197126,2684.4,2684.3,20.089]
[1747978219839,14.32697568,2684.4,2684.3,20.089]
[1747978221072,3.72652021,2683.5,2683.1,1.17184944]
[1747978221218,1.0567,2683.7,2683.0,1.0696]
[1747978221219,1.0567,2683.7,2683.5,16.074]
[1747978221422,3.72633775,2683.6,2683.5,16.074]
[1747978221621,3.72633775,2683.6,2683.5,47.325]
[1747978221847,3.72633775,2683.6,2683.5,16.074]
[1747978222220,4.57727056,2683.6,2683.5,36.165]
[1747978223050,4.57727056,2683.6,2683.5,16.074]
[1747978223250,4.57727056,2683.6,2683.5,47.328]
[1747978223450,4.57727056,2683.6,2682.7,8.36189472]
[1747978223451,3.72633775,2683.6,2682.7,3.46247683]
[1747978223634,12.84620477,2682.4,2682.3,2.97055049]
[1747978224261,13.39620477,2682.4,2682.3,2.97055049]
[1747978224563,13.39620477,2682.4,2682.3,1.81895049]
[1747978224564,13.87930604,2682.4,2682.3,1.81895049]
[1747978224739,16.99334542,2682.4,2682.3,1.81895049]
[1747978225136,4.81738275,2682.2,2682.1,0.05]
[1747978225451,13.36738275,2682.2,2682.1,0.05]
[1747978226354,12.81738275,2682.2,2682.1,0.05]
[1747978227144,15.15613885,2682.2,2682.1,0.05]
[1747978229581,12.81738275,2682.2,2682.1,0.05]
[1747978230378,11.72828275,2682.2,2682.1,0.05]
[1747978231474,8.0,2682.2,2682.1,0.05]
[1747978231841,1.1489,2682.8,2682.1,27.306]
[1747978232057,1.1489,2683.1,2682.2,2.7306]
[1747978232289,3.72771767,2682.7,2682.2,2.7306]
[1747978232575,3.72744509,2682.9,2682.2,2.7306]
[1747978232781,8.0,2683.3,2682.3,2.37266966]
[1747978232782,11.72682762,2683.3,2682.3,2.37266966]
[1747978232980,8.0,2683.1,2682.4,3.72791037]
[1747978233183,3.72695936,2683.2,2682.5,20.104]
[1747978233478,3.72703216,2683.1,2682.6,11.17]
[1747978233674,3.72703216,2683.1,2682.7,1.1777]
[1747978233874,11.7270014,2683.2,2682.7,1.1777]
[1747978234278,3.72703686,2683.1,2682.7,1.1777]
[1747978234839,3.72665648,2683.4,2682.8,31.274]
[1747978235207,1.1706,2683.7,2682.9,3.72721157]
[1747978235351,3.72670336,2683.4,2682.8,35.00144272]
[1747978235701,3.72670336,2683.4,2682.8,31.274]
[1747978235862,3.72670336,2683.4,2682.8,35.00144649]
[1747978236059,3.72592123,2683.9,2683.1,3.72694916]
[1747978236259,3.7264579,2683.6,2683.2,16.086]
[1747978236572,3.7264579,2683.6,2683.3,11.17]
[1747978236775,11.72625119,2683.7,2683.4,20.102]
[1747978236959,8.0,2683.7,2683.4,20.102]
[1747978237291,1.1185,2684.0,2683.4,20.102]
[1747978237458,3.7263052,2683.7,2683.4,20.102]
[1747978237665,3.72641988,2683.6,2683.4,20.102]
[1747978237851,3.72623144,2683.7,2683.4,20.102]
[1747978238050,8.0,2683.6,2683.4,20.102]
[1747978238663,3.72595471,2683.9,2683.4,22.47466966]
[1747978238664,3.72594999,2683.9,2683.4,22.47466966]
[1747978238989,3.72581503,2684.0,2683.4,22.47466966]
[1747978239191,1.1579,2684.8,2683.5,1.1346]
[1747978239506,3.7252378,2684.4,2683.7,3.72608076]
[1747978239726,1.1579,2684.8,2683.6,1.1023]
[1747978239937,3.72530895,2684.4,2683.7,3.72611812]
[1747978240207,3.72530895,2684.4,2683.9,1.1023]
[1747978240418,3.72539,2684.3,2684.0,30.692]
[1747978240626,3.72519036,2684.5,2684.0,30.692]
[1747978240975,3.72467222,2684.8,2684.0,30.692]
[1747978241314,3.72468889,2684.8,2684.2,1.1762]
[1747978241490,3.72468889,2684.8,2684.3,16.084]
[1747978241820,11.77458092,2684.9,2684.3,16.084]
[1747978242114,0.05,2684.9,2684.4,1.72602]
[1747978242346,3.77458027,2684.9,2684.4,1.72602]
[1747978242628,0.05,2684.9,2684.5,1.1078]
[1747978242788,0.05,2684.9,2684.6,30.970382]
[1747978242988,3.77454521,2684.9,2684.6,30.970382]
[1747978243316,0.05,2684.9,2684.6,30.970382]
[1747978243544,3.77458153,2684.9,2684.6,30.970382]
[1747978245054,0.05,2684.9,2684.6,30.970382]
[1747978245236,0.05,2684.9,2684.7,1.3366658]
[1747978245407,3.77462737,2684.9,2684.7,1.3366658]
[1747978245814,0.05,2684.9,2684.7,1.3366658]
[1747978246008,0.05,2684.9,2684.8,1.1646]
[1747978246606,3.7745335,2684.9,2684.8,1.1646]
[1747978246807,0.05,2684.9,2684.8,2.92180186]
[1747978248232,3.7745335,2684.9,2684.8,33.60380186]
[1747978248645,0.05,2684.9,2684.8,33.60380186]
[1747978249636,0.05,2684.9,2684.8,2.92180186]
[1747978249841,0.05,2684.9,2684.8,31.8416]
[1747978250992,0.05,2684.9,2684.8,35.56627222]
[1747978251128,0.05,2684.9,2684.8,35.47537222]
[1747978251323,0.05,2685.9,2685.0,1.0737]
[1747978251580,3.72339111,2685.8,2685.1,1.0737]
[1747978251722,3.72339111,2685.8,2685.2,4.20390553]
[1747978251927,0.05,2685.9,2685.2,4.20390553]
[1747978251928,3.77316543,2685.9,2685.4,1.1786]
[1747978252128,0.05,2685.9,2685.5,30.095]
[1747978252560,0.05,2685.9,2685.5,33.81865518]
[1747978252739,0.05,2685.9,2685.7,4.90192859]
[1747978252940,0.05,2685.9,2685.8,3.72328542]
[1747978253278,0.05,2685.9,2685.8,4.90188542]
[1747978253849,3.7731468,2685.9,2685.8,1.1786]
[1747978254049,0.05,2685.9,2685.8,31.2736]
[1747978254672,0.05,2685.9,2685.8,34.40096]
[1747978255136,3.7731468,2685.9,2685.8,34.40096]
[1747978255348,3.7731468,2685.9,2685.8,18.928]
[1747978257483,0.05,2685.9,2685.8,18.928]
[1747978257651,3.7731468,2685.9,2685.8,18.928]
[1747978259775,0.05,2685.9,2685.8,18.928]
[1747978259983,3.7731468,2685.9,2685.8,30.087]
[1747978262504,0.05,2685.9,2685.8,30.087]
[1747978262801,3.7731468,2685.9,2685.8,30.087]
[1747978263000,3.7731468,2685.9,2685.5,1.1886]
[1747978263001,3.7235627,2685.6,2685.5,1.1886]
[1747978263154,3.7235627,2685.6,2685.3,16.074]
[1747978263155,3.72384002,2685.4,2685.3,16.074]
[1747978263358,3.72384002,2685.4,2685.3,46.157]
[1747978263982,3.72384002,2685.4,2685.3,16.074]
[1747978264191,3.72384002,2685.4,2685.3,46.155]
[1747978264560,3.72384002,2685.4,2685.3,16.074]
[1747978264761,3.72384002,2685.4,2685.3,46.155]
[1747978265300,3.72384002,2685.4,2685.3,16.074]
[1747978265502,3.72384002,2685.4,2685.3,46.155]
[1747978268405,3.72384002,2685.4,2685.3,16.074]
[1747978268610,3.72384002,2685.4,2685.3,45.602]
[1747978268813,3.72384002,2685.4,2685.3,16.074]
[1747978269118,3.72384002,2685.4,2685.3,45.602]
[1747978271082,3.7237482,2685.5,2685.3,45.602]
[1747978271281,3.72384002,2685.4,2685.3,45.602]
[1747978273903,0.05,2685.9,2685.3,45.602]
[1747978274102,3.72379453,2685.5,2685.3,45.602]
[1747978274525,3.72362063,2685.6,2685.3,49.35202344]
[1747978274692,3.72347479,2685.7,2685.4,1.1263]
[1747978274892,3.77318779,2685.9,2685.4,1.1263]
[1747978274893,3.72358153,2685.6,2685.4,1.1263]
[1747978275306,3.72370135,2685.5,2685.4,1.1263]
[1747978275511,3.72370135,2685.5,2685.4,12.2843]
[1747978275992,3.72384002,2685.4,2685.3,16.074]
[1747978276192,3.72384002,2685.4,2685.3,45.602]
[1747978276690,3.72375567,2685.5,2685.3,45.602]
[1747978277728,3.72384002,2685.4,2685.3,45.602]
[1747978277940,3.7237611,2685.5,2685.3,45.602]
[1747978278433,3.72384002,2685.4,2685.3,45.602]
[1747978278787,0.05,2685.9,2685.3,45.602]
[1747978278788,3.72370163,2685.5,2685.3,45.602]
[1747978279243,3.72370163,2685.5,2685.3,34.444]
[1747978279403,9.087,2685.4,2684.4,1.1228]
[1747978279739,3.72491742,2684.7,2684.6,16.068]
[1747978280242,3.72491742,2684.7,2684.6,27.226]
[1747978281294,3.72491742,2684.7,2684.6,45.596]
[1747978282120,11.7245785,2684.9,2684.6,45.596]
[1747978282331,8.0,2684.6,2684.1,18.372]
[1747978282638,9.1771,2684.7,2684.1,29.531]
[1747978282992,3.72549172,2684.3,2684.1,29.531]
[1747978283189,3.7255048,2684.2,2684.1,29.531]
[1747978283693,3.72523555,2684.4,2684.1,29.531]
[1747978283903,9.1771,2684.7,2684.1,29.531]
[1747978284193,9.1771,2684.7,2684.1,32.4841]
[1747978284392,3.7255048,2684.2,2683.6,3.72625265]
[1747978284621,3.7255048,2684.2,2683.7,18.372]
[1747978285234,1.1771,2684.7,2683.8,16.071]
[1747978285437,3.72560727,2684.2,2683.9,18.374]
[1747978285797,3.72560727,2684.2,2684.0,11.16]
[1747978286338,3.72572707,2684.1,2683.9,18.374]
[1747978286551,3.72578558,2684.0,2683.8,16.071]
[1747978286697,3.72578241,2684.0,2683.9,29.534]
[1747978287405,3.72570174,2684.1,2683.9,29.534]
[1747978287843,3.72499073,2684.6,2683.9,29.534]
[1747978288197,1.1771,2684.7,2683.9,29.534]
[1747978288403,3.7256436,2684.1,2684.0,28.99]
[1747978289028,3.7256436,2684.1,2683.8,16.071]
[1747978289230,3.72536601,2684.3,2683.9,28.99]
[1747978289399,3.7256178,2684.2,2683.9,28.99]
[1747978289930,3.72565339,2684.1,2683.9,28.99]
[1747978290130,3.72555083,2684.2,2683.9,28.99]
[1747978290328,3.72550118,2684.3,2683.9,28.99]
[1747978290515,3.7255174,2684.2,2683.9,28.99]
[1747978292041,3.72567161,2684.1,2683.9,28.99]
[1747978292749,3.72555294,2684.2,2683.9,28.99]
[1747978293867,3.72555294,2684.2,2683.9,17.829]
[1747978293868,11.72578241,2684.0,2683.9,17.829]
[1747978294153,12.82058241,2684.0,2683.9,28.992]
[1747978295202,12.82058241,2684.0,2683.9,17.829]
[1747978295498,12.82058241,2684.0,2683.9,28.992]
[1747978295898,12.82058241,2684.0,2683.9,17.829]
[1747978296101,12.82058241,2684.0,2683.9,28.992]
[1747978297061,3.72569776,2684.1,2683.9,28.992]
[1747978297204,8.0,2684.0,2683.9,28.992]
[1747978297607,1.0869,2684.4,2683.9,28.992]
[1747978297850,8.0,2684.1,2683.9,28.992]
[1747978298053,3.72567334,2684.1,2683.9,28.992]
[1747978298211,8.0,2684.2,2683.9,28.992]
[1747978298651,1.0869,2684.4,2683.9,28.992]
[1747978298820,3.72551759,2684.2,2683.9,28.992]
[1747978299761,3.72551995,2684.2,2683.9,28.992]
[1747978300114,3.72573871,2684.1,2683.9,28.992]
[1747978300541,3.72556927,2684.2,2683.9,28.992]
[1747978302416,3.72537763,2684.3,2683.9,28.992]
[1747978302758,3.72520779,2684.5,2683.9,28.992]
[1747978302759,11.72528995,2684.4,2683.9,28.992]
[1747978303064,3.72536601,2684.3,2683.9,28.992]
[1747978303575,3.72529187,2684.4,2683.9,28.992]
[1747978303858,8.0,2684.4,2683.9,28.992]
[1747978304059,11.72531611,2684.4,2683.9,28.992]
[1747978304355,3.72550503,2684.2,2683.9,28.992]
[1747978304559,3.72542778,2684.3,2683.9,28.992]
[1747978304711,3.7252677,2684.4,2683.9,28.992]
[1747978305256,9.0669,2684.7,2683.9,28.992]
[1747978305257,3.72494971,2684.6,2683.9,28.992]
[1747978305425,3.72578241,2684.0,2683.9,17.829]
[1747978305631,3.72577912,2684.1,2684.0,11.164]
[1747978308144,11.7252244,2684.5,2684.0,11.164]
[1747978308354,3.72538108,2684.3,2684.0,11.164]
[1747978308669,3.7255469,2684.2,2684.0,11.164]
[1747978309351,8.0,2684.5,2683.1,0.05]
[1747978309352,3.72689326,2683.2,2683.1,0.05]
[1747978309514,11.72689326,2683.2,2683.1,0.05]
[1747978310555,12.80329326,2683.2,2683.1,0.05]
[1747978312739,13.35329326,2683.2,2683.1,0.05]
[1747978313042,15.0612981,2683.2,2683.1,0.05]
[1747978314971,15.0612981,2683.2,2682.2,11.168]
[1747978314972,3.72828275,2682.2,2682.1,0.05]
[1747978315174,13.41328275,2682.2,2682.1,0.05]
[1747978316381,13.35388275,2682.2,2682.1,0.05]
[1747978316676,15.06208499,2682.2,2682.1,0.05]
[1747978319769,6.51208499,2682.2,2682.1,0.05]
[1747978319931,4.80388275,2682.2,2682.1,0.05]
[1747978322146,3.66888275,2682.2,2682.1,0.05]
[1747978324246,3.72790391,2682.5,2682.1,0.05]
[1747978324542,3.72790391,2682.5,2682.2,17.912]
[1747978324780,3.72754214,2682.8,2682.3,17.912]
[1747978324985,3.72800477,2682.4,2682.3,17.912]
[1747978325505,0.7,2682.6,2682.3,17.912]
[1747978325800,3.72689326,2683.2,2682.5,1.0835]
[1747978325956,1.1235,2683.3,2682.5,1.0835]
[1747978326299,3.72772683,2682.6,2682.5,17.912]
[1747978326989,3.72814375,2682.3,2682.2,17.912]
[1747978327336,8.0,2682.9,2682.3,1.0531]
[1747978327541,9.17271097,2682.9,2682.3,1.0531]
[1747978328040,3.72798626,2682.5,2682.3,1.0531]
[1747978328378,1.17271097,2682.9,2682.3,1.0531]
[1747978328720,1.1386,2683.1,2682.3,1.0531]
[1747978328998,0.19351595,2684.2,2682.6,1.8662388]
[1747978329175,2.46812516,2684.9,2683.9,1.0641]
[1747978329176,1.89046433,2684.9,2683.9,1.0641]
[1747978329355,2.2014207,2684.9,2684.2,0.19351595]
[1747978329543,3.72517738,2684.5,2684.2,1.72540597]
[1747978329736,3.72522723,2684.4,2684.3,1.89104952]
[1747978329960,3.7261989,2683.7,2683.6,19.005]
[1747978331079,3.72611247,2683.8,2683.6,19.005]
[1747978331273,3.7261989,2683.7,2683.6,19.005]
[1747978331664,3.7261989,2683.7,2683.6,17.911]
[1747978336898,3.72675436,2683.3,2683.0,16.086]
[1747978337102,3.72689326,2683.2,2683.1,17.906]
[1747978337305,3.72703216,2683.1,2683.0,16.086]
[1747978337520,3.72703216,2683.1,2683.0,33.992]
[1747978338115,3.72703216,2683.1,2683.0,16.086]
[1747978338289,3.72703216,2683.1,2683.0,33.992]
[1747978338633,4.4724247,2683.1,2683.0,17.906]
[1747978338924,4.4724247,2683.1,2682.5,17.906]
[1747978338925,3.72772683,2682.6,2682.5,17.906]
[1747978339072,3.72759485,2682.7,2682.5,17.906]
[1747978339270,3.72761724,2682.7,2682.5,18.9757]
[1747978339718,3.72772683,2682.6,2682.5,18.9757]
[1747978339888,3.7275955,2682.7,2682.5,30.1447]
[1747978340208,0.74539254,2683.1,2682.5,30.1447]
[1747978340209,3.72772683,2682.6,2682.5,18.9757]
[1747978340414,3.72772683,2682.6,2682.5,17.906]
[1747978342016,3.72772683,2682.6,2682.2,16.084]
[1747978342017,3.72800477,2682.4,2682.2,16.084]
[1747978342191,3.72800477,2682.4,2682.3,17.768]
[1747978342388,1.1226,2683.0,2682.3,17.768]
[1747978342716,1.99713925,2683.0,2682.3,17.768]
[1747978343010,3.72800477,2682.4,2682.3,17.768]
[1747978343513,3.72792689,2682.5,2682.3,17.768]
[1747978343902,3.72731,2682.9,2682.3,17.768]
[1747978344206,3.72795637,2682.5,2682.3,17.768]
[1747978344882,3.72776076,2682.6,2682.3,17.768]
[1747978345619,3.7276157,2682.7,2682.3,17.768]
[1747978345927,3.72732701,2682.9,2682.3,17.768]
[1747978346427,3.72753497,2682.8,2682.3,17.768]
[1747978346606,3.72732701,2682.9,2682.3,17.768]
[1747978346991,3.72745134,2682.8,2682.3,17.768]
[1747978347329,1.0509,2683.3,2682.4,11.17]
[1747978347330,3.72775958,2682.6,2682.4,11.17]
[1747978347694,3.72717107,2683.0,2682.4,11.17]
[1747978347894,1.0509,2683.3,2682.4,11.17]
[1747978348091,3.72730616,2683.0,2682.5,1.078]
[1747978348306,3.7270569,2683.1,2682.5,4.80585426]
[1747978348510,3.72665442,2683.4,2682.6,1.59758543]
[1747978348720,3.72683487,2683.3,2682.7,3.72758101]
[1747978348888,3.72691821,2683.2,2682.8,1.1483]
[1747978349094,3.72704697,2683.1,2682.9,17.769]
[1747978349310,3.72675976,2683.3,2683.0,11.17]
[1747978349899,3.72693343,2683.2,2683.0,11.17]
[1747978350228,1.116,2684.2,2683.1,1.1361]
[1747978350420,1.116,2684.2,2683.2,16.085]
[1747978350734,3.7256436,2684.1,2683.2,16.085]
[1747978351028,3.72642813,2683.6,2683.2,16.085]
[1747978351671,3.72576161,2684.1,2683.2,16.085]
[1747978351796,3.7260607,2683.8,2683.3,1.0882]
[1747978353271,1.116,2684.5,2683.3,1.0882]
[1747978353639,3.72614164,2683.8,2683.3,1.0882]
[1747978353847,3.7255048,2684.2,2683.3,1.0882]
[1747978354052,3.72645815,2683.6,2683.4,11.17]
[1747978354358,3.72645815,2683.6,2683.3,1.0882]
[1747978354562,3.72645815,2683.6,2683.5,17.766]
[1747978354729,3.72627589,2683.7,2683.5,17.766]
[1747978355064,3.72633775,2683.6,2683.5,17.766]
[1747978356284,3.72652272,2683.5,2683.3,1.0882]
[1747978356453,3.72661548,2683.4,2683.3,17.765]